bitfinex/quotes_SOLUSD_20250310
["timestamp","ask_amount","ask_price","bid_price","bid_amount"]
[1741618841045,70.60000239,121.13,121.07,8.2596]
[1741618841375,20.02925662,121.12,121.08,70.60000239]
[1741618841587,18.79181043,121.1,121.06,0.063]
[1741618841734,18.79181043,121.1,121.07,70.60000239]
[1741618841735,0.14216157,121.1,121.07,70.60000239]
[1741618842129,18.79181043,121.1,121.06,70.66300239]
[1741618842356,18.79181043,121.1,121.06,0.063]
[1741618842534,20.02925662,121.1,121.06,70.66300239]
[1741618842734,0.14216157,121.1,121.08,70.60000239]
[1741618843068,0.14216157,121.1,121.07,70.60000239]
[1741618843227,13.76,121.11,121.09,70.60000239]
[1741618843436,0.14216157,121.13,121.11,8.2569]
[1741618843727,0.14216157,121.13,121.1,70.60000239]
[1741618844129,0.28432314,121.14,121.12,70.60000239]
[1741618844449,18.933972,121.12,121.08,70.60000239]
[1741618844761,0.28432314,121.11,121.06,8.3232]
[1741618845064,0.28432314,121.11,121.09,20.0]
[1741618845544,0.28432314,121.1,121.06,0.063]
[1741618845747,0.28432314,121.1,121.07,70.60000239]
[1741618845962,0.28432314,121.1,121.08,70.60000239]
[1741618846162,0.28432314,121.12,121.09,70.60000239]
[1741618846360,0.28432314,121.12,121.1,70.60000239]
[1741618846663,18.64964886,121.11,121.07,20.0]
[1741618846855,18.933972,121.12,121.08,70.60000239]
[1741618847562,0.28432314,121.12,121.09,70.60000239]
[1741618847859,0.14216157,121.12,121.09,70.60000239]
[1741618848079,0.14216157,121.13,121.1,70.60000239]
[1741618848244,89.39181282,121.13,121.08,70.60000239]
[1741618848446,1.23744619,121.13,121.07,28.2594]
[1741618848657,196.64,121.15,121.12,70.60000239]
[1741618848885,196.64,121.15,121.13,70.60000239]
[1741618849061,196.64,121.15,121.14,70.60000239]
[1741618849249,196.64,121.15,121.11,20.0]
[1741618849563,0.02,121.22,121.15,8.2542]
[1741618849765,1.25744619,121.22,121.18,70.60000239]
[1741618849955,0.14216157,121.19,121.15,70.60000239]
[1741618850150,0.14216157,121.19,121.16,70.60000239]
[1741618850550,1.23744619,121.21,121.17,70.60000239]
[1741618850751,70.74216396,121.2,121.14,70.60000239]
[1741618850954,0.14216157,121.16,121.11,8.2569]
[1741618851266,70.60000239,121.18,121.15,70.60000239]
[1741618851267,13.76,121.18,121.15,70.60000239]
[1741618851445,0.14216157,121.17,121.16,70.60000239]
[1741618851641,13.76,121.18,121.16,78.85350239]
[1741618851969,0.28432314,121.22,121.17,70.60000239]
[1741618852162,196.72,121.24,121.21,70.60000239]
[1741618852365,196.72,121.24,121.23,70.60000239]
[1741618852542,196.72,121.24,121.2,20.0]
[1741618852867,0.28432314,121.23,121.21,70.60000239]
[1741618853069,196.72,121.24,121.22,70.60000239]
[1741618853268,9.4711122,121.27,121.23,70.60000239]
[1741618853567,0.02,121.28,121.23,70.60000239]
[1741618853762,0.02,121.28,121.26,70.60000239]
[1741618853943,0.02,121.28,121.27,70.60000239]
[1741618854357,0.0001,121.3,121.29,20.0]
[1741618854561,0.0001,121.3,121.29,90.60000239]
[1741618855648,0.0001,121.3,121.29,98.84470239]
[1741618856877,0.0001,121.3,121.26,20.6162]
[1741618857086,0.0001,121.3,121.26,208.40000239]
[1741618857373,0.0001,121.3,121.29,70.60000239]
[1741618857886,0.14216157,121.37,121.32,20.0]
[1741618858049,0.14216157,121.37,121.36,70.60000239]
[1741618858380,0.14216157,121.37,121.32,90.60000239]
[1741618858381,0.14216157,121.37,121.33,70.60000239]
[1741618858545,0.14216157,121.37,121.34,70.60000239]
[1741618858747,8.93543434,121.37,121.34,70.60000239]
[1741618859162,8.93543434,121.37,121.33,70.60000239]
[1741618859355,8.93543434,121.37,121.32,70.60000239]
[1741618859559,0.14216157,121.35,121.3,70.60000239]
[1741618859761,1.37960776,121.35,121.3,70.60000239]
[1741618859975,70.74216396,121.33,121.24,142.8562]
[1741618860181,18.933972,121.32,121.25,8.2474]
[1741618860388,70.88432553,121.3,121.23,146.0485]
[1741618860691,18.933972,121.28,121.24,70.60000239]
[1741618860857,0.28432314,121.28,121.25,70.60000239]
[1741618861058,82.33744619,121.33,121.27,70.60000239]
[1741618861267,12.92744162,121.34,121.32,70.60000239]
[1741618861477,7.94037624,121.36,121.33,70.60000239]
[1741618861775,18.933972,121.33,121.26,78.84650239]
[1741618861983,90.77142058,121.33,121.28,70.60000239]
[1741618862167,18.64964886,121.3,121.26,70.60000239]
[1741618862361,0.28432314,121.29,121.25,70.60000239]
[1741618862599,0.28432314,121.27,121.21,8.2501]
[1741618862749,0.14216157,121.26,121.22,70.60000239]
[1741618862953,81.1,121.27,121.25,70.60000239]
[1741618863271,22.4753894,121.29,121.26,70.60000239]
[1741618863467,22.4753894,121.29,121.28,20.0]
[1741618863670,22.4753894,121.29,121.28,98.84530239]
[1741618864490,8.94e-05,121.29,121.28,255.29495125]
[1741618864786,8.94e-05,121.29,121.28,236.64530239]
[1741618865291,8.94e-05,121.29,121.28,98.84530239]
[1741618865452,8.94e-05,121.29,121.28,78.84530239]
[1741618865657,0.14216157,121.3,121.21,156.44964886]
[1741618865851,0.14216157,121.3,121.26,70.60000239]
[1741618866093,13.74,121.31,121.29,70.60000239]
[1741618866400,0.14216157,121.35,121.26,20.0]
[1741618866685,0.28432314,121.37,121.33,70.60000239]
[1741618866853,89.53397439,121.37,121.32,70.60000239]
[1741618867055,70.88432553,121.33,121.27,70.60000239]
[1741618867358,0.28432314,121.31,121.28,70.60000239]
[1741618867669,97.77777439,121.31,121.26,70.60000239]
[1741618867857,89.53397439,121.29,121.24,70.60000239]
[1741618868058,0.14216157,121.26,121.24,70.60000239]
[1741618868259,0.14216157,121.29,121.25,70.60000239]
[1741618868465,13.88216157,121.31,121.22,28.8729]
[1741618868665,0.14216157,121.3,121.28,70.60000239]
[1741618868856,0.28432314,121.3,121.28,70.60000239]
[1741618869174,70.88432553,121.3,121.22,166.6729]
[1741618869473,89.24965125,121.27,121.21,8.25]
[1741618869675,81.1,121.29,121.26,70.60000239]
[1741618869854,0.14216157,121.34,121.27,20.0]
[1741618870060,0.14216157,121.36,121.27,157.8]
[1741618872169,0.14216157,121.33,121.28,5.1272]
[1741618872511,0.14216157,121.33,121.29,70.60000239]
[1741618872679,0.14216157,121.3,121.24,137.8]
[1741618872977,0.14216157,121.28,121.22,5.4037]
[1741618873156,70.74216396,121.26,121.21,70.60000239]
[1741618873356,70.60000239,121.23,121.17,5.244]
[1741618873561,0.14216157,121.19,121.11,24.0312]
[1741618873872,70.88432553,121.2,121.15,70.60000239]
[1741618874074,0.14216157,121.2,121.16,70.60000239]
[1741618874258,0.14216157,121.2,121.15,70.60000239]
[1741618874457,70.60000239,121.19,121.14,70.60000239]
[1741618874662,0.14216157,121.2,121.16,70.60000239]
[1741618874859,0.28432314,121.18,121.11,15.7743]
[1741618875081,0.14216157,121.18,121.14,70.60000239]
[1741618875587,1.52176933,121.18,121.11,15.7743]
[1741618875800,0.14216157,121.18,121.14,70.60000239]
[1741618875962,0.28432314,121.18,121.14,70.60000239]
[1741618876161,7.5957561,121.17,121.14,70.60000239]
[1741618876460,7.5957561,121.17,121.15,70.60000239]
[1741618876672,7.5957561,121.17,121.12,70.60000239]
[1741618876673,0.28432314,121.16,121.12,70.60000239]
[1741618877196,70.88432553,121.14,121.1,0.063]
[1741618877362,70.74216396,121.14,121.1,0.063]
[1741618877560,7.5957561,121.15,121.12,70.60000239]
[1741618878067,7.5957561,121.15,121.14,70.60000239]
[1741618878270,72.60000239,121.26,121.14,70.60000239]
[1741618878271,20.6053,121.33,121.19,0.14216157]
[1741618878479,70.60000239,121.31,121.26,70.60000239]
[1741618878670,1.23744619,121.32,121.23,20.0]
[1741618878863,71.83744858,121.32,121.26,70.60000239]
[1741618879179,71.83744858,121.32,121.27,70.60000239]
[1741618879382,71.83744858,121.32,121.29,70.60000239]
[1741618879383,13.74,121.32,121.29,70.60000239]
[1741618879563,89.3414,121.34,121.32,20.0]
[1741618879564,1.23744619,121.34,121.32,20.0]
[1741618879763,196.59,121.38,121.32,20.0]
[1741618879764,0.03,121.38,121.33,70.60000239]
[1741618879976,0.03,121.38,121.34,70.60000239]
[1741618880171,18.963972,121.38,121.34,70.60000239]
[1741618880362,0.17216157,121.38,121.33,70.60000239]
[1741618880575,0.03,121.38,121.34,70.60000239]
[1741618880768,0.03,121.38,121.33,20.0]
[1741618881080,0.03,121.38,121.35,70.60000239]
[1741618881281,0.03,121.38,121.3,137.8]
[1741618881282,0.02,121.36,121.3,137.8]
[1741618881462,0.14216157,121.35,121.3,90.60000239]
[1741618881667,1.39960776,121.36,121.32,70.60000239]
[1741618881986,0.02,121.36,121.35,70.60000239]
[1741618882488,0.03,121.38,121.37,20.0]
[1741618882784,0.05,121.38,121.37,317.64965364]
[1741618882960,0.03,121.43,121.42,20.0]
[1741618883167,0.03,121.43,121.42,247.04965125]
[1741618883564,0.03,121.43,121.42,317.93397678]
[1741618883874,0.03,121.43,121.42,326.16977678]
[1741618884069,0.03,121.43,121.42,255.28545125]
[1741618884566,0.03,121.43,121.42,228.40000239]
[1741618884763,0.03,121.43,121.42,20.0]
[1741618885070,0.03,121.43,121.42,90.60000239]
[1741618885278,0.03,121.43,121.41,70.60000239]
[1741618885585,89.39181282,121.42,121.37,70.60000239]
[1741618885764,1.26744619,121.43,121.37,70.60000239]
[1741618885971,0.14216157,121.42,121.37,70.60000239]
[1741618886171,0.14216157,121.4,121.36,70.60000239]
[1741618886371,0.14216157,121.4,121.33,70.60000239]
[1741618886372,70.74216396,121.38,121.33,70.60000239]
[1741618886900,14.95744619,121.4,121.35,70.60000239]
[1741618887077,0.03,121.43,121.39,70.60000239]
[1741618887266,0.20309392,121.43,121.42,90.60000239]
[1741618887473,0.20309392,121.43,121.42,317.93397678]
[1741618887774,0.20309392,121.43,121.42,317.64965364]
[1741618887985,0.17667269,121.44,121.43,18.933972]
[1741618888289,0.02,121.5,121.47,20.0]
[1741618888483,0.02,121.5,121.49,70.60000239]
[1741618888791,0.02,121.5,121.49,159.84965364]
[1741618889171,0.02,121.5,121.49,297.93397678]
[1741618889499,0.03,121.56,121.5,156.733972]
[1741618889699,0.05,121.56,121.55,159.84965364]
[1741618889869,0.05,121.56,121.55,305.87665364]
[1741618890064,0.05,121.56,121.55,208.40000239]
[1741618890270,0.05,121.56,121.51,20.5736]
[1741618890271,0.05,121.56,121.51,137.8]
[1741618890468,0.19216157,121.56,121.51,20.0]
[1741618890794,0.14216157,121.53,121.44,5.3929]
[1741618890998,0.14216157,121.5,121.46,70.60000239]
[1741618891175,70.74216396,121.5,121.45,70.60000239]
[1741618891378,0.14216157,121.5,121.46,70.60000239]
[1741618891569,0.14216157,121.5,121.44,70.60000239]
[1741618891782,18.933972,121.53,121.48,70.60000239]
[1741618891976,0.14216157,121.53,121.5,70.60000239]
[1741618892202,0.03,121.56,121.52,70.60000239]
[1741618892514,0.03,121.56,121.55,20.0]
[1741618892872,0.03,121.56,121.55,90.60000239]
[1741618893076,0.03,121.56,121.55,317.64965364]
[1741618893676,196.28,121.67,121.59,20.0]
[1741618893677,266.88000239,121.67,121.59,20.0]
[1741618893887,13.7,121.7,121.64,8.2209]
[1741618894077,13.7,121.7,121.68,70.60000239]
[1741618894278,13.7,121.7,121.66,70.60000239]
[1741618894901,13.7,121.7,121.65,70.60000239]
[1741618895199,0.02,121.7,121.68,70.60000239]
[1741618895375,0.02,121.7,121.66,20.0]
[1741618895775,0.02,121.7,121.63,156.44964886]
[1741618895776,0.16216157,121.7,121.65,70.60000239]
[1741618896200,0.14216157,121.68,121.65,70.60000239]
[1741618896696,0.14216157,121.68,121.64,70.60000239]
[1741618896899,0.28432314,121.68,121.64,70.60000239]
[1741618897097,70.88432553,121.68,121.63,70.60000239]
[1741618897286,0.14216157,121.66,121.62,70.60000239]
[1741618897598,0.14216157,121.63,121.59,70.60000239]
[1741618897893,0.14216157,121.66,121.62,78.82200239]
[1741618898093,0.02,121.66,121.63,70.60000239]
[1741618898280,0.02,121.66,121.65,70.60000239]
[1741618898480,0.02,121.66,121.64,70.60000239]
[1741618898697,0.02,121.66,121.63,70.60000239]
[1741618898896,0.02,121.66,121.64,70.60000239]
[1741618899196,0.17216157,121.7,121.65,70.60000239]
[1741618899197,0.03,121.7,121.65,70.60000239]
[1741618899512,0.03,121.7,121.65,176.44964886]
[1741618899672,0.03,121.7,121.69,70.60000239]
[1741618899873,0.03,121.7,121.69,78.81760239]
[1741618900077,13.68,121.77,121.72,20.0]
[1741618900321,266.64000239,121.81,121.74,70.60000239]
[1741618900483,196.04,121.81,121.74,141.20000478]
[1741618900794,196.04,121.81,121.74,297.64965364]
[1741618900974,0.02,121.79,121.74,279.00000478]
[1741618901680,0.02,121.79,121.74,208.40000239]
[1741618901999,84.42216396,121.78,121.73,90.60000239]
[1741618902212,0.14216157,121.77,121.74,70.60000239]
[1741618902379,18.933972,121.77,121.7,8.2169]
[1741618902587,70.88432553,121.77,121.72,70.60000239]
[1741618902795,0.14216157,121.73,121.69,70.60000239]
[1741618903092,70.74216396,121.7,121.64,8.2209]
[1741618903403,0.14216157,121.7,121.64,8.2209]
[1741618903581,0.14216157,121.68,121.64,70.60000239]
[1741618903783,0.14216157,121.68,121.65,70.60000239]
[1741618904083,18.933972,121.69,121.65,70.60000239]
[1741618904283,97.75157439,121.69,121.64,70.60000239]
[1741618904484,0.14216157,121.66,121.62,70.60000239]
[1741618904803,0.28432314,121.69,121.65,70.60000239]
[1741618905001,70.88432553,121.66,121.61,70.60000239]
[1741618905299,13.68,121.66,121.62,20.0]
[1741618905483,13.68,121.66,121.59,156.262]
[1741618905686,13.68,121.66,121.64,70.60000239]
[1741618906004,13.68,121.66,121.63,70.60000239]
[1741618906194,195.96,121.7,121.65,70.60000239]
[1741618906392,20.5654,121.75,121.69,70.60000239]
[1741618906393,0.14216157,121.73,121.69,70.60000239]
[1741618906601,152.93744858,121.73,121.65,20.0]
[1741618906782,81.1,121.73,121.65,20.0]
[1741618907101,0.17144174,121.69,121.63,18.64964886]
[1741618907304,0.17144174,121.69,121.66,70.60000239]
[1741618907484,0.14216157,121.68,121.65,70.60000239]
[1741618907688,0.14216157,121.68,121.64,70.60000239]
[1741618907909,0.14216157,121.68,121.59,176.8229]
[1741618907910,70.60000239,121.67,121.59,176.8229]
[1741618908089,0.14216157,121.63,121.57,146.0251]
[1741618908390,0.14216157,121.63,121.59,70.60000239]
[1741618908909,0.28432314,121.67,121.62,70.60000239]
[1741618909087,0.31360331,121.69,121.62,70.60000239]
[1741618909283,0.31360331,121.69,121.67,70.60000239]
[1741618909684,0.45576488,121.69,121.66,70.60000239]
[1741618909900,0.45576488,121.69,121.65,90.60000239]
[1741618910088,0.45576488,121.69,121.65,98.82020239]
[1741618910409,0.14216157,121.67,121.64,70.60000239]
[1741618910608,1.23744619,121.68,121.64,70.60000239]
[1741618910801,0.31360331,121.69,121.67,70.60000239]
[1741618911111,0.17144174,121.69,121.68,141.20000478]
[1741618911289,0.17144174,121.69,121.68,70.60000239]
[1741618911983,0.17144174,121.69,121.63,137.8]
[1741618912226,18.933972,121.68,121.64,70.60000239]
[1741618912388,18.933972,121.68,121.58,156.44964886]
[1741618912389,103.21397439,121.68,121.62,70.60000239]
[1741618912703,0.14216157,121.67,121.64,70.60000239]
[1741618912895,90.62925901,121.67,121.62,70.60000239]
[1741618913094,20.02925662,121.67,121.61,70.60000239]
[1741618913304,90.62925901,121.67,121.62,70.60000239]
[1741618913509,0.17144174,121.69,121.66,70.60000239]
[1741618913697,0.17144174,121.69,121.65,20.0]
[1741618914089,0.17144174,121.69,121.66,8.2196]
[1741618914311,0.17144174,121.69,121.68,70.60000239]
[1741618914528,0.17144174,121.69,121.68,141.20000478]
[1741618914693,5.96e-05,121.7,121.68,279.00000478]
[1741618915021,5.1e-05,121.71,121.69,70.60000239]
[1741618915396,5.1e-05,121.71,121.7,70.60000239]
[1741618916194,5.1e-05,121.71,121.7,78.81690239]
[1741618916493,4.27e-05,121.72,121.7,216.61690239]
[1741618916707,4.27e-05,121.72,121.71,70.60000239]
[1741618917007,0.14855098,121.74,121.71,70.60000239]
[1741618917008,7.531e-05,121.74,121.72,18.64964886]
[1741618917193,6.941e-05,121.75,121.73,141.20000478]
[1741618917394,6.941e-05,121.75,121.74,70.60000239]
[1741618917588,6.941e-05,121.75,121.72,70.60000239]
[1741618917997,6.941e-05,121.75,121.73,70.60000239]
[1741618918833,6.941e-05,121.75,121.71,8.2162]
[1741618918992,0.14216157,121.74,121.69,8.2176]
[1741618919315,18.64964886,121.72,121.65,10.1416]
[1741618919491,18.64964886,121.72,121.62,76.08550239]
[1741618919492,89.53397439,121.69,121.63,8.2216]
[1741618919700,0.28432314,121.69,121.63,8.2216]
[1741618920024,0.14216157,121.67,121.63,78.82160239]
[1741618920235,0.14216157,121.67,121.61,20.5559]
[1741618920236,0.14216157,121.67,121.61,8.223]
[1741618920529,70.74216396,121.68,121.64,70.60000239]
[1741618920530,0.28432314,121.68,121.64,70.60000239]
[1741618920716,0.14216157,121.66,121.61,8.223]
[1741618921028,8.2176,121.69,121.65,70.60000239]
[1741618921029,0.14216157,121.69,121.65,70.60000239]
[1741618921237,18.79181043,121.76,121.68,161.20000478]
[1741618921400,93.70944858,121.78,121.68,90.60000239]
[1741618921730,276.96,121.8,121.69,2.0]
[1741618921934,13.66,121.83,121.74,141.20000478]
[1741618921935,94.76,121.83,121.74,141.20000478]
[1741618922231,70.60000239,121.83,121.74,287.21420478]
[1741618922528,71.83744858,121.82,121.74,149.41420478]
[1741618922695,1.23744619,121.82,121.74,78.81420239]
[1741618923027,81.1,121.84,121.77,20.0]
[1741618923227,70.60000239,121.81,121.74,166.5497]
[1741618923527,81.1,121.83,121.77,20.0]
[1741618923699,1.26744619,121.85,121.82,70.60000239]
[1741618923895,0.03,121.85,121.84,70.60000239]
[1741618924232,0.03,121.85,121.84,78.80740239]
[1741618924621,0.03,121.85,121.84,20.0]
[1741618924830,0.03,121.85,121.84,90.60000239]
[1741618925316,0.0001,121.85,121.84,228.40000239]
[1741618925828,0.0001,121.85,121.84,70.60000239]
[1741618926031,0.0001,121.85,121.84,78.80740239]
[1741618926400,0.0001,121.85,121.84,168.05705364]
[1741618926733,0.14216157,121.9,121.87,20.0]
[1741618926899,0.28432314,121.9,121.86,70.60000239]
[1741618927101,0.14216157,121.88,121.84,8.2074]
[1741618927328,0.14216157,121.86,121.8,146.0101]
[1741618927632,0.14216157,121.84,121.81,70.60000239]
[1741618927836,72.60000239,121.92,121.83,70.60000239]
[1741618927837,18.933972,121.89,121.83,70.60000239]
[1741618928045,0.14216157,121.85,121.78,137.8]
[1741618928209,0.14216157,121.87,121.79,8.2108]
[1741618928404,1.23744619,121.9,121.85,70.60000239]
[1741618928606,1.23744619,121.94,121.88,20.0]
[1741618928824,13.595228,121.95,121.93,70.60000239]
[1741618929044,13.595228,121.95,121.94,70.60000239]
[1741618929538,84.26000239,122.03,121.94,208.40000239]
[1741618929741,1.23744619,122.02,121.95,20.0]
[1741618929915,70.60000239,122.01,121.96,70.60000239]
[1741618930112,70.60000239,121.99,121.91,20.0]
[1741618930315,9.43294619,122.02,121.92,20.0]
[1741618930625,18.79181043,121.97,121.88,70.60000239]
[1741618930921,0.14216157,121.94,121.9,70.60000239]
[1741618931216,18.64964886,121.93,121.89,70.60000239]
[1741618931424,0.14216157,121.9,121.82,137.8]
[1741618931661,0.14216157,121.87,121.79,8.2108]
[1741618931834,0.14216157,121.85,121.79,8.2108]
[1741618932043,13.66,121.89,121.79,8.2108]
[1741618932332,70.60000239,121.86,121.79,8.2108]
[1741618932523,89.53397439,121.85,121.79,78.81080239]
[1741618932712,0.14216157,121.82,121.79,70.60000239]
[1741618932911,0.14216157,121.82,121.78,78.81130239]
[1741618933421,0.14216157,121.82,121.74,10.8449]
[1741618933626,0.14216157,121.82,121.73,70.60000239]
[1741618933627,0.14216157,121.77,121.73,70.60000239]
[1741618933829,13.66,121.76,121.73,70.60000239]
[1741618934022,13.66,121.8,121.75,70.60000239]
[1741618934230,13.66,121.8,121.76,8.2128]
[1741618934427,18.933972,121.79,121.73,137.8]
[1741618934637,20.17141819,121.79,121.7,8.2169]
[1741618934930,20.17141819,121.79,121.68,8.2181]
[1741618935123,18.933972,121.77,121.66,8.2196]
[1741618935320,18.933972,121.75,121.66,137.8]
[1741618935636,0.14216157,121.69,121.66,70.60000239]
[1741618936339,0.14216157,121.69,121.62,70.60000239]
[1741618936340,0.14216157,121.67,121.62,70.60000239]
[1741618936529,18.64964886,121.66,121.63,70.60000239]
[1741618936729,0.14216157,121.65,121.64,0.063]
[1741618937633,90.62925901,121.65,121.64,0.063]
[1741618937937,89.39181282,121.65,121.64,0.063]
[1741618938144,20.14216157,121.61,121.59,0.063]
[1741618938435,107.97054886,121.64,121.59,0.063]
[1741618938436,18.79181043,121.6,121.59,0.063]
[1741618938638,0.14216157,121.6,121.59,0.063]
[1741618938813,0.14216157,121.59,121.5,185.21428191]
[1741618939015,70.74216396,121.57,121.5,146.0303]
[1741618939322,18.64964886,121.53,121.49,70.60000239]
[1741618939529,18.64964886,121.51,121.49,30.47652862]
[1741618939840,18.64964886,121.51,121.48,0.063]
[1741618940021,26.17322372,121.52,121.48,0.063]
[1741618940229,12.51322372,121.52,121.45,8.2338]
[1741618940431,18.64964886,121.51,121.45,105.47410746]
[1741618940638,12.51322372,121.52,121.5,70.60000239]
[1741618941050,18.64964886,121.52,121.5,70.60000239]
[1741618941253,18.64964886,121.52,121.45,105.47410746]
[1741618941254,48.87861488,121.56,121.51,70.60000239]
[1741618941451,18.933972,121.55,121.48,20.0]
[1741618941620,18.933972,121.52,121.45,8.2338]
[1741618941933,0.28432314,121.49,121.43,8.2351]
[1741618942133,13.68,121.48,121.46,8.2331]
[1741618942440,18.64964886,121.47,121.43,8.2351]
[1741618942646,0.28432314,121.46,121.41,70.60000239]
[1741618943230,70.88432553,121.46,121.4,8.2372]
[1741618943430,0.14216157,121.42,121.38,70.60000239]
[1741618944030,101.84172372,121.53,121.41,70.60000239]
[1741618944223,18.79181043,121.51,121.5,70.60000239]
[1741618944427,12.51322372,121.53,121.5,70.60000239]
[1741618944633,12.51322372,121.53,121.52,70.60000239]
[1741618944943,83.11322611,121.58,121.52,70.60000239]
[1741618945126,12.51322372,121.58,121.54,70.60000239]
[1741618945444,2.372e-05,121.58,121.57,70.60000239]
[1741618945629,25.02644745,121.59,121.57,167.84030985]
[1741618945630,7.117e-05,121.59,121.57,167.84030985]
[1741618945837,48.87861488,121.64,121.61,20.0]
[1741618946030,48.87861488,121.64,121.63,70.60000239]
[1741618946229,48.87861488,121.64,121.63,78.82160239]
[1741618946538,48.87861488,121.64,121.63,70.60000239]
[1741618946729,7.57681488,121.64,121.63,78.82160239]
[1741618946929,375.63881191,121.65,121.64,97.24029258]
[1741618947143,110.11291219,121.72,121.67,20.0]
[1741618947336,110.11291219,121.72,121.71,70.60000239]
[1741618947532,24.65411219,121.72,121.71,167.84029497]
[1741618947936,70.60000239,121.77,121.68,70.60000239]
[1741618948240,0.14216157,121.75,121.67,20.0]
[1741618948440,1.23744619,121.74,121.67,20.0]
[1741618948643,70.88432553,121.72,121.67,90.60000239]
[1741618948837,0.14216157,121.78,121.71,203.87701167]
[1741618949038,70.88432553,121.75,121.71,133.27700928]
[1741618949229,70.60000239,121.73,121.71,133.27700928]
[1741618949427,0.14216157,121.73,121.71,133.27700928]
[1741618949646,1.23744619,121.77,121.72,16.65962616]
[1741618949831,0.28432314,121.76,121.72,16.65962616]
[1741618950235,70.60000239,121.75,121.72,16.65962616]
[1741618950547,89.53397439,121.73,121.72,16.65962616]
[1741618950938,18.933972,121.73,121.71,116.61738312]
[1741618951263,0.14216157,121.75,121.71,197.43348551]
[1741618951434,70.74216396,121.75,121.71,116.61738312]
[1741618951629,70.60000239,121.74,121.72,133.28262751]
[1741618951954,20.0,121.77,121.72,133.28262751]
[1741618952125,70.60000239,121.74,121.72,133.28262751]
[1741618952332,33.76,121.77,121.73,16.66524439]
[1741618952659,13.76,121.77,121.73,16.66524439]
[1741618953025,21.9722,121.77,121.73,16.66524439]
[1741618953244,13.76,121.77,121.74,16.66524439]
[1741618953551,13.78,121.79,121.74,16.66524439]
[1741618953751,70.60000239,121.77,121.74,16.66524439]
[1741618954066,70.74216396,121.75,121.74,16.66524439]
[1741618954349,97.60531282,121.75,121.74,16.66524439]
[1741618954549,97.60531282,121.75,121.72,116.61738312]
[1741618954550,18.79181043,121.74,121.72,141.80947804]
[1741618954760,89.39181282,121.73,121.72,141.80947804]
[1741618954924,103.13181282,121.73,121.72,136.29337804]
[1741618955125,20.14216157,121.7,121.69,50.38418985]
[1741618955352,179.99181521,121.7,121.69,44.86808985]
[1741618955648,109.39181282,121.7,121.69,44.86808985]
[1741618955962,179.99181521,121.7,121.69,8.985e-05]
[1741618956138,38.79181043,121.66,121.65,11.11016293]
[1741618956444,38.79181043,121.66,121.63,0.063]
[1741618956445,0.14216157,121.65,121.63,0.063]
[1741618956629,70.74216396,121.64,121.63,0.063]
[1741618957046,89.39181282,121.64,121.63,0.063]
[1741618957350,0.14216157,121.65,121.63,0.063]
[1741618957551,21.9196,121.66,121.63,0.063]
[1741618957758,0.14216157,121.64,121.63,0.063]
[1741618958149,89.39181282,121.64,121.63,0.063]
[1741618958347,97.61271282,121.64,121.63,0.063]
[1741618959039,97.61271282,121.64,121.55,20.8276254]
[1741618959040,293.49271282,121.64,121.55,83.20092779]
[1741618959240,0.14216157,121.58,121.55,12.6009254]
[1741618959438,70.74216396,121.58,121.55,12.6009254]
[1741618959633,0.14216157,121.56,121.52,70.60000239]
[1741618959851,70.74216396,121.56,121.49,2.0]
[1741618960055,94.86,121.59,121.52,2.0]
[1741618960234,0.14216157,121.58,121.53,2.0]
[1741618960444,81.1,121.66,121.55,2.0]
[1741618960748,89.39181282,121.65,121.58,2.0]
[1741618960955,0.14216157,121.65,121.61,70.60000239]
[1741618961159,0.14216157,121.65,121.59,2.0]
[1741618961160,70.74216396,121.63,121.59,2.0]
[1741618961456,18.64964886,121.65,121.6,70.60000239]
[1741618961678,0.14216157,121.64,121.57,2.0]
[1741618961855,20.14216157,121.61,121.57,2.0]
[1741618962052,81.1,121.66,121.61,2.0]
[1741618962252,81.1,121.66,121.62,70.60000239]
[1741618962559,102.30422781,121.69,121.64,70.60000239]
[1741618962736,13.78,121.69,121.6,2.0]
[1741618962942,13.78,121.69,121.58,136.42339258]
[1741618962943,70.60000239,121.66,121.61,70.60000239]
[1741618963153,20.0,121.65,121.61,70.60000239]
[1741618963443,70.60000239,121.64,121.58,77.68310239]
[1741618963645,13.8,121.63,121.6,70.60000239]
[1741618964242,70.60000239,121.61,121.56,72.60000239]
[1741618964546,0.14216157,121.61,121.58,70.60000239]
[1741618964866,0.14216157,121.61,121.57,72.60000239]